[Event "Pervenstvo PFO 2023_Y19_Rapid"]
[Site "Samara region, Russia"]
[Date "2023.11.11"]
[Round "4.6"]
[White "Sitnikov, Vladimir"]
[Black "Galyaviev, Samat"]
[Result "0-1"]
[TimeControl "10:5"]
[WhiteFideId "24211796"]
[BlackFideId "44168470"]
[WhiteElo "1132"]
[BlackElo "2030"]

1. e4 {[%clk 00:10:10]} {[%emt 00:00:07]} e6 {[%clk 00:10:10]} {[%emt
00:00:01]} 2. d4 {[%clk 00:10:13]} {[%emt 00:00:02]} d5 {[%clk 00:10:14]} 3. e5
{[%clk 00:10:15]} {[%emt 00:00:03]} c5 {[%clk 00:10:18]} 4. c3 {[%clk
00:10:19]} Qb6 {[%clk 00:10:22]} 5. Qb3 {[%clk 00:10:24]} Qxb3 6. axb3 {[%clk
00:10:28]} cxd4 {[%clk 00:10:27]} {[%emt 00:00:01]} 7. cxd4 {[%clk 00:10:31]}
Nc6 {[%clk 00:10:27]} {[%emt 00:00:06]} 8. Nf3 {[%clk 00:10:20]} {[%emt
00:00:16]} f6 {[%clk 00:10:30]} {[%emt 00:00:02]} 9. Bb5 {[%clk 00:10:14]}
{[%emt 00:00:10]} Bd7 {[%clk 00:10:33]} {[%emt 00:00:02]} 10. exf6 {[%clk
00:10:06]} {[%emt 00:00:13]} gxf6 {[%clk 00:10:28]} {[%emt 00:00:11]} 11. Nc3
{[%clk 00:09:57]} {[%emt 00:00:15]} Bd6 {[%clk 00:10:30]} {[%emt 00:00:03]} 12.
Bd2 {[%clk 00:09:42]} {[%emt 00:00:20]} Nge7 {[%clk 00:10:30]} {[%emt
00:00:05]} 13. Bxc6 {[%clk 00:08:18]} {[%emt 00:01:29]} Bxc6 {[%clk 00:10:33]}
{[%emt 00:00:03]} 14. O-O {[%clk 00:08:02]} {[%emt 00:00:20]} Kf7 {[%clk
00:10:33]} {[%emt 00:00:04]} 15. Rfe1 {[%clk 00:07:53]} {[%emt 00:00:15]} h5
{[%clk 00:10:08]} {[%emt 00:00:30]} 16. Ne2 {[%clk 00:06:36]} {[%emt 00:01:22]}
Ng6 {[%clk 00:10:05]} {[%emt 00:00:07]} 17. Rac1 {[%clk 00:03:04]} {[%emt
00:03:37]} a6 {[%clk 00:10:05]} {[%emt 00:00:06]} 18. Nc3 {[%clk 00:03:06]}
{[%emt 00:00:02]} Nf4 {[%clk 00:09:56]} {[%emt 00:00:15]} 19. Bxf4 {[%clk
00:02:52]} {[%emt 00:00:19]} Bxf4 {[%clk 00:09:59]} {[%emt 00:00:02]} 20. Rcd1
{[%clk 00:02:45]} {[%emt 00:00:11]} Rhg8 {[%clk 00:09:24]} {[%emt 00:00:40]} 21.
Ne2 {[%clk 00:02:23]} {[%emt 00:00:27]} Bd6 {[%clk 00:09:26]} {[%emt 00:00:03]}
22. Ng3 {[%clk 00:02:21]} {[%emt 00:00:08]} Rh8 {[%clk 00:09:12]} {[%emt
00:00:19]} 23. Nh4 {[%clk 00:01:13]} {[%emt 00:01:12]} Rag8 {[%clk 00:09:10]}
{[%emt 00:00:08]} 24. Kh1 {[%clk 00:01:08]} {[%emt 00:00:11]} Rg4 {[%clk
00:09:08]} {[%emt 00:00:06]} 25. Nf3 {[%clk 00:01:10]} {[%emt 00:00:02]} h4
{[%clk 00:08:45]} {[%emt 00:00:28]} 26. Nf1 {[%clk 00:01:12]} {[%emt 00:00:04]}
Rhg8 {[%clk 00:08:17]} {[%emt 00:00:33]} 27. Ne3 {[%clk 00:01:13]} {[%emt
00:00:04]} Re4 {[%clk 00:08:20]} {[%emt 00:00:02]} 28. Nc2 {[%clk 00:00:59]}
{[%emt 00:00:19]} h3 {[%clk 00:07:44]} {[%emt 00:00:41]} 29. g3 {[%clk
00:00:39]} {[%emt 00:00:26]} Rc8 {[%clk 00:07:39]} {[%emt 00:00:10]} 30. Ne3
{[%clk 00:00:09]} {[%emt 00:00:34]} Bb4 {[%clk 00:07:30]} {[%emt 00:00:14]} 31.
Rg1 {[%clk 00:00:08]} {[%emt 00:00:06]} Bb5 {[%clk 00:07:18]} {[%emt 00:00:17]}
32. Rc1 {[%clk 00:00:10]} {[%emt 00:00:04]} Be2 {[%clk 00:07:11]} {[%emt
00:00:11]} 33. Rxc8 {[%clk 00:00:06]} {[%emt 00:00:09]} Bxf3+ {[%clk 00:07:13]}
{[%emt 00:00:03]} 34. Ng2 {[%clk 00:00:09]} {[%emt 00:00:02]} hxg2+ {[%clk
00:07:16]} {[%emt 00:00:02]} 35. Rxg2 {[%clk 00:00:11]} {[%emt 00:00:03]} Re1#
{[%clk 00:07:20]} {[%emt 00:00:01]} 0-1

[Event "Pervenstvo PFO 2023_Y19_Rapid"]
[Site "Samara region, Russia"]
[Date "2023.11.11"]
[Round "4.7"]
[White "Evtukhov, Lev"]
[Black "Berezin, Zachar"]
[Result "0-1"]
[TimeControl "10:5"]
[WhiteFideId "44173210"]
[BlackFideId "44139322"]
[WhiteElo "1923"]
[BlackElo "1658"]

1. d4 {[%clk 00:10:09]} d6 {[%clk 00:10:09]} {[%emt 00:00:02]} 2. c4 {[%clk
00:10:12]} {[%emt 00:00:02]} e5 {[%clk 00:10:13]} 3. Nc3 {[%clk 00:09:36]}
{[%emt 00:00:41]} Nd7 {[%clk 00:10:13]} {[%emt 00:00:06]} 4. Nf3 {[%clk
00:09:36]} {[%emt 00:00:05]} Be7 {[%clk 00:10:04]} {[%emt 00:00:15]} 5. e4
{[%clk 00:09:13]} {[%emt 00:00:28]} Ngf6 {[%clk 00:10:05]} {[%emt 00:00:03]} 6.
Be2 {[%clk 00:09:16]} {[%emt 00:00:02]} O-O {[%clk 00:10:08]} {[%emt 00:00:03]}
7. O-O {[%clk 00:09:16]} {[%emt 00:00:05]} h6 {[%clk 00:09:57]} {[%emt
00:00:16]} 8. h3 {[%clk 00:08:54]} {[%emt 00:00:27]} c6 {[%clk 00:10:01]} 9.
Be3 {[%clk 00:08:51]} {[%emt 00:00:07]} Qc7 {[%clk 00:09:57]} {[%emt 00:00:08]}
10. Qc2 {[%clk 00:08:30]} {[%emt 00:00:27]} Rd8 {[%clk 00:09:55]} {[%emt
00:00:07]} 11. Rfd1 {[%clk 00:08:26]} {[%emt 00:00:09]} Nf8 {[%clk 00:09:59]}
{[%emt 00:00:02]} 12. d5 {[%clk 00:08:13]} {[%emt 00:00:18]} cxd5 {[%clk
00:08:31]} {[%emt 00:01:33]} 13. cxd5 {[%clk 00:08:12]} {[%emt 00:00:06]} g5
{[%clk 00:07:03]} {[%emt 00:01:34]} 14. Nd2 {[%clk 00:06:43]} {[%emt 00:01:34]}
Ng6 {[%clk 00:06:49]} {[%emt 00:00:18]} 15. Rac1 {[%clk 00:06:38]} {[%emt
00:00:10]} Nf4 {[%clk 00:06:14]} {[%emt 00:00:40]} 16. Bf1 {[%clk 00:06:41]}
{[%emt 00:00:01]} Bd7 {[%clk 00:04:19]} {[%emt 00:02:01]} 17. Nb5 {[%clk
00:05:52]} {[%emt 00:00:54]} Qa5 {[%clk 00:04:01]} {[%emt 00:00:24]} 18. Nb3
{[%clk 00:05:15]} {[%emt 00:00:42]} Qb4 {[%clk 00:03:44]} {[%emt 00:00:21]} 19.
Nc3 {[%clk 00:05:16]} {[%emt 00:00:03]} Ba4 {[%clk 00:03:15]} {[%emt 00:00:35]}
20. Nxa4 {[%clk 00:03:37]} {[%emt 00:01:44]} Qxa4 {[%clk 00:03:19]} 21. Qc4
{[%clk 00:02:29]} {[%emt 00:01:13]} Qd7 {[%clk 00:02:16]} {[%emt 00:01:07]} 22.
f3 {[%clk 00:02:19]} {[%emt 00:00:15]} Rdc8 {[%clk 00:02:05]} {[%emt 00:00:17]}
23. Qb5 {[%clk 00:02:20]} {[%emt 00:00:03]} Qxb5 {[%clk 00:02:03]} {[%emt
00:00:08]} 24. Bxb5 {[%clk 00:02:23]} a6 {[%clk 00:02:07]} {[%emt 00:00:01]} 25.
Bf1 {[%clk 00:02:16]} {[%emt 00:00:12]} b5 {[%clk 00:02:10]} {[%emt 00:00:03]}
26. Na5 {[%clk 00:02:07]} {[%emt 00:00:13]} Ng6 {[%clk 00:01:23]} {[%emt
00:00:52]} 27. Nc6 {[%clk 00:01:57]} {[%emt 00:00:15]} Bf8 {[%clk 00:01:27]}
{[%emt 00:00:01]} 28. b4 {[%clk 00:01:22]} {[%emt 00:00:40]} Nf4 {[%clk
00:01:21]} {[%emt 00:00:11]} 29. g3 {[%clk 00:01:08]} {[%emt 00:00:19]} Ng6
{[%clk 00:01:20]} {[%emt 00:00:06]} 30. a4 {[%clk 00:00:39]} {[%emt 00:00:35]}
bxa4 {[%clk 00:01:13]} {[%emt 00:00:12]} 31. Ra1 {[%clk 00:00:43]} Ne7 {[%clk
00:01:13]} {[%emt 00:00:05]} 32. Rdc1 {[%clk 00:00:47]} Nxc6 {[%clk 00:01:01]}
{[%emt 00:00:17]} 33. dxc6 {[%clk 00:00:51]} {[%emt 00:00:02]} d5 {[%clk
00:01:05]} 34. Rxa4 {[%clk 00:00:51]} {[%emt 00:00:05]} dxe4 {[%clk 00:01:06]}
{[%emt 00:00:04]} 35. Bxa6 {[%clk 00:00:46]} {[%emt 00:00:10]} Nd5 {[%clk
00:01:03]} {[%emt 00:00:08]} 36. Bd2 {[%clk 00:00:32]} {[%emt 00:00:19]} e3
{[%clk 00:00:55]} {[%emt 00:00:12]} 37. Be1 {[%clk 00:00:36]} Bxb4 {[%clk
00:00:46]} {[%emt 00:00:15]} 38. Bxb4 {[%clk 00:00:14]} {[%emt 00:00:28]} Nxb4
{[%clk 00:00:50]} 39. Bxc8 {[%clk 00:00:18]} {[%emt 00:00:02]} Rxa4 {[%clk
00:00:46]} {[%emt 00:00:09]} 40. Bf5 {[%clk 00:00:17]} {[%emt 00:00:06]} Nd5
{[%clk 00:00:37]} {[%emt 00:00:14]} 41. Be4 {[%clk 00:00:08]} {[%emt 00:00:14]}
Nc7 {[%clk 00:00:36]} {[%emt 00:00:06]} 42. Re1 {[%clk 00:00:11]} {[%emt
00:00:02]} Ra3 {[%clk 00:00:36]} {[%emt 00:00:04]} 43. Kf1 {[%clk 00:00:15]}
Rc3 {[%clk 00:00:31]} {[%emt 00:00:10]} 44. Ke2 {[%clk 00:00:12]} {[%emt
00:00:09]} Ne6 {[%clk 00:00:29]} {[%emt 00:00:07]} 45. Rd1 {[%clk 00:00:13]}
{[%emt 00:00:04]} Nd4+ {[%clk 00:00:31]} {[%emt 00:00:03]} 46. Ke1 {[%clk
00:00:14]} {[%emt 00:00:02]} e2 {[%clk 00:00:25]} {[%emt 00:00:12]} 47. Rb1
{[%clk 00:00:14]} {[%emt 00:00:03]} f5 {[%clk 00:00:26]} {[%emt 00:00:07]} 48.
Rb8+ {[%clk 00:00:09]} {[%emt 00:00:10]} Kg7 {[%clk 00:00:29]} {[%emt
00:00:02]} 49. Bd5 {[%clk 00:00:10]} {[%emt 00:00:04]} Rc1+ {[%clk 00:00:32]}
{[%emt 00:00:02]} 0-1

[Event "Pervenstvo PFO 2023_Y19_Rapid"]
[Site "Samara region, Russia"]
[Date "2023.11.11"]
[Round "4.8"]
[White "Kunakkuzin, Rinat"]
[Black "Sadykov, Ilgiz A."]
[Result "1-0"]
[TimeControl "10:5"]
[WhiteFideId "54126584"]
[BlackFideId "34286217"]
[WhiteElo "1925"]
[BlackElo "1675"]

1. d4 {[%emt 00:02:13]} Nf6 {[%emt 00:00:02]} 2. g3 {[%emt 00:00:01]} d5 {[%emt
00:00:05]} 3. Bg2 {[%emt 00:00:01]} c6 {[%emt 00:00:06]} 4. Nf3 {[%emt
00:00:02]} Bf5 {[%emt 00:00:05]} 5. O-O {[%emt 00:00:03]} e6 {[%emt 00:00:01]}
6. Nbd2 {[%emt 00:00:04]} Be7 {[%emt 00:00:03]} 7. Nh4 {[%emt 00:00:08]} Bg6
{[%emt 00:00:08]} 8. b3 {[%emt 00:00:12]} Nbd7 {[%emt 00:00:16]} 9. Bb2 {[%emt
00:00:03]} O-O {[%emt 00:00:35]} 10. Nxg6 {[%emt 00:00:02]} hxg6 {[%emt
00:00:01]} 11. c4 {[%emt 00:00:03]} a5 {[%emt 00:00:11]} 12. a4 {[%emt
00:00:13]} Bb4 {[%emt 00:00:27]} 13. Nf3 {[%emt 00:00:13]} Ne4 {[%emt
00:00:08]} 14. Qc2 {[%emt 00:00:17]} f5 {[%emt 00:00:13]} 15. Ne5 {[%emt
00:00:07]} Nxe5 {[%emt 00:00:15]} 16. dxe5 {[%emt 00:00:03]} Qb6 {[%emt
00:00:06]} 17. Rad1 {[%emt 00:00:25]} Bc5 {[%emt 00:00:06]} 18. e3 {[%emt
00:00:07]} Rad8 {[%emt 00:00:52]} 19. Bd4 {[%emt 00:00:07]} Qa7 {[%emt
00:00:30]} 20. f3 {[%emt 00:00:16]} Ng5 {[%emt 00:00:19]} 21. h4 {[%emt
00:00:02]} Nf7 {[%emt 00:00:04]} 22. f4 {[%emt 00:00:04]} Rc8 {[%emt 00:00:16]}
23. Bf3 {[%emt 00:00:22]} Rfd8 {[%emt 00:00:07]} 24. Kg2 {[%emt 00:00:16]} b5
{[%emt 00:00:06]} 25. h5 {[%emt 00:00:17]} g5 {[%emt 00:00:06]} 26. Qc3 {[%emt
00:01:30]} Bxd4 {[%emt 00:01:23]} 27. Qxd4 {[%emt 00:00:29]} Qxd4 {[%emt
00:00:42]} 28. Rxd4 {[%emt 00:00:11]} bxa4 {[%emt 00:01:04]} 29. cxd5 {[%emt
00:00:32]} cxd5 {[%emt 00:00:34]} 30. Rxa4 {[%emt 00:00:05]} Rc3 {[%emt
00:00:56]} 31. Bd1 {[%emt 00:01:01]} Rxe3 {[%emt 00:00:24]} 32. Rxa5 {[%emt
00:00:02]} Rc8 {[%emt 00:00:13]} 33. b4 {[%emt 00:01:49]} d4 {[%emt 00:01:05]}
34. Rf3 {[%emt 00:00:26]} Rxf3 {[%emt 00:00:39]} 35. Kxf3 {[%emt 00:00:15]}
Rc3+ {[%emt 00:00:02]} 36. Kf2 {[%emt 00:00:08]} Rd3 {[%emt 00:00:09]} 37. Ra8+
{[%emt 00:00:29]} Kh7 {[%emt 00:00:03]} 38. Ba4 {[%emt 00:00:09]} gxf4 {[%emt
00:00:33]} 39. gxf4 {[%emt 00:00:04]} Rh3 {[%emt 00:00:13]} 40. Be8 {[%emt
00:00:21]} Nh8 {[%emt 00:00:02]} 41. Bd7 {[%emt 00:00:08]} Rh2+ {[%emt
00:00:14]} 42. Ke1 {[%emt 00:00:28]} Rxh5 {[%emt 00:00:02]} 43. Bxe6 {[%emt
00:00:09]} Ng6 {[%emt 00:00:03]} 44. Bg8+ {[%emt 00:00:42]} Kh6 {[%emt
00:00:10]} 45. e6 {[%emt 00:00:12]} Ne7 {[%emt 00:00:05]} 46. Bf7 {[%emt
00:00:07]} Rh3 {[%emt 00:00:04]} 47. Rh8# {[%emt 00:00:03]} 1-0

[Event "Pervenstvo PFO 2023_Y19_Rapid"]
[Site "Samara region, Russia"]
[Date "2023.11.11"]
[Round "4.9"]
[White "Panteleev, Zakhar"]
[Black "Ermakov, Maxim"]
[Result "1-0"]
[TimeControl "10:5"]
[WhiteFideId "34483977"]
[BlackFideId "54174996"]
[WhiteElo "1556"]
[BlackElo "1766"]

1. Nf3 {[%clk 00:10:13]} Nf6 {[%clk 00:10:15]} 2. e3 {[%clk 00:10:16]} {[%emt
00:00:03]} d5 {[%clk 00:10:16]} {[%emt 00:00:04]} 3. b3 {[%clk 00:10:18]}
{[%emt 00:00:04]} e6 {[%clk 00:10:20]} {[%emt 00:00:02]} 4. Bb2 {[%clk
00:10:21]} {[%emt 00:00:01]} c5 {[%clk 00:10:24]} {[%emt 00:00:01]} 5. d4
{[%clk 00:10:13]} {[%emt 00:00:13]} Nc6 {[%clk 00:10:28]} {[%emt 00:00:02]} 6.
Be2 {[%clk 00:10:12]} {[%emt 00:00:05]} cxd4 {[%clk 00:10:23]} {[%emt
00:00:10]} 7. Nxd4 {[%clk 00:10:12]} {[%emt 00:00:05]} Bd6 {[%clk 00:10:18]}
{[%emt 00:00:11]} 8. O-O {[%clk 00:10:03]} {[%emt 00:00:14]} O-O {[%clk
00:10:08]} {[%emt 00:00:15]} 9. c4 {[%clk 00:09:48]} {[%emt 00:00:20]} e5
{[%clk 00:09:19]} {[%emt 00:00:54]} 10. Nb5 {[%clk 00:09:19]} {[%emt 00:00:34]}
Bb8 {[%clk 00:09:17]} {[%emt 00:00:06]} 11. cxd5 {[%clk 00:08:31]} {[%emt
00:00:52]} Nxd5 {[%clk 00:09:18]} {[%emt 00:00:06]} 12. N1c3 {[%clk 00:07:53]}
{[%emt 00:00:43]} Be6 {[%clk 00:08:45]} {[%emt 00:00:38]} 13. Bf3 {[%clk
00:07:37]} {[%emt 00:00:20]} Nxc3 {[%clk 00:08:24]} {[%emt 00:00:27]} 14. Nxc3
{[%clk 00:07:29]} {[%emt 00:00:13]} Qb6 {[%clk 00:08:23]} {[%emt 00:00:03]} 15.
Rc1 {[%clk 00:06:20]} {[%emt 00:01:18]} Rd8 {[%clk 00:05:48]} {[%emt 00:02:40]}
16. Qe2 {[%clk 00:04:56]} {[%emt 00:01:28]} Bd6 {[%clk 00:05:52]} {[%emt
00:00:01]} 17. Rfd1 {[%clk 00:04:38]} {[%emt 00:00:24]} Rac8 {[%clk 00:04:37]}
{[%emt 00:01:20]} 18. Bd5 {[%clk 00:02:29]} {[%emt 00:02:13]} Bxd5 {[%clk
00:04:03]} {[%emt 00:00:39]} 19. Nxd5 {[%clk 00:02:23]} {[%emt 00:00:11]} Qa5
{[%clk 00:03:43]} {[%emt 00:00:25]} 20. a4 {[%clk 00:01:36]} {[%emt 00:00:52]}
Bb4 {[%clk 00:03:16]} {[%emt 00:00:32]} 21. e4 {[%clk 00:01:24]} {[%emt
00:00:17]} Ne7 {[%clk 00:02:14]} {[%emt 00:01:07]} 22. Rxc8 {[%clk 00:01:09]}
{[%emt 00:00:20]} Rxc8 {[%clk 00:01:33]} {[%emt 00:00:46]} 23. Bxe5 {[%clk
00:00:55]} {[%emt 00:00:18]} Nxd5 {[%clk 00:01:21]} {[%emt 00:00:17]} 24. Qg4
{[%clk 00:00:55]} {[%emt 00:00:05]} f6 {[%clk 00:00:26]} {[%emt 00:01:01]} 25.
Qxc8+ {[%clk 00:00:54]} {[%emt 00:00:06]} Kf7 {[%clk 00:00:30]} 26. Qc4 {[%clk
00:00:39]} {[%emt 00:00:20]} fxe5 {[%clk 00:00:06]} {[%emt 00:00:30]} 27. Rxd5
{[%clk 00:00:40]} {[%emt 00:00:03]} Qb6 {[%clk 00:00:06]} {[%emt 00:00:06]} 28.
Rd6+ {[%clk 00:00:31]} {[%emt 00:00:12]} 1-0

[Event "Pervenstvo PFO 2023_Y19_Rapid"]
[Site "Samara region, Russia"]
[Date "2023.11.11"]
[Round "4.10"]
[White "Gimazetdinov, Amir"]
[Black "Yudin, Danil"]
[Result "1-0"]
[TimeControl "10:5"]
[WhiteFideId "54142440"]
[BlackFideId "44171986"]
[WhiteElo "1749"]
[BlackElo "1786"]

1. Nf3 {[%clk 00:10:08]} {[%emt 00:00:02]} Nf6 {[%clk 00:10:10]} 2. c4 {[%clk
00:10:11]} {[%emt 00:00:03]} g6 {[%clk 00:10:13]} {[%emt 00:00:01]} 3. e3
{[%clk 00:10:15]} Bg7 {[%clk 00:10:18]} 4. Nc3 {[%clk 00:10:19]} {[%emt
00:00:01]} d6 {[%clk 00:10:20]} {[%emt 00:00:04]} 5. b3 {[%clk 00:10:23]} O-O
{[%clk 00:10:23]} {[%emt 00:00:02]} 6. Bb2 {[%clk 00:10:27]} {[%emt 00:00:01]}
e5 {[%clk 00:10:18]} {[%emt 00:00:09]} 7. d3 {[%clk 00:10:31]} {[%emt
00:00:01]} c5 {[%clk 00:10:22]} {[%emt 00:00:01]} 8. Be2 {[%clk 00:10:35]} Nc6
{[%clk 00:10:26]} 9. O-O {[%clk 00:10:38]} {[%emt 00:00:03]} h6 {[%clk
00:10:25]} {[%emt 00:00:06]} 10. Nd5 {[%clk 00:10:27]} {[%emt 00:00:15]} Nxd5
{[%clk 00:10:19]} {[%emt 00:00:11]} 11. cxd5 {[%clk 00:10:30]} {[%emt
00:00:02]} Ne7 {[%clk 00:10:23]} {[%emt 00:00:01]} 12. e4 {[%clk 00:10:30]}
{[%emt 00:00:05]} f5 {[%clk 00:10:27]} 13. Nd2 {[%clk 00:10:34]} {[%emt
00:00:01]} f4 {[%clk 00:10:31]} {[%emt 00:00:02]} 14. Bg4 {[%clk 00:10:37]} h5
{[%clk 00:09:26]} {[%emt 00:01:10]} 15. Bf3 {[%clk 00:10:35]} {[%emt 00:00:08]}
Kh7 {[%clk 00:08:15]} {[%emt 00:01:16]} 16. a4 {[%clk 00:10:39]} Ng8 {[%clk
00:08:17]} {[%emt 00:00:03]} 17. a5 {[%clk 00:10:36]} {[%emt 00:00:08]} Nf6
{[%clk 00:08:17]} {[%emt 00:00:05]} 18. Nc4 {[%clk 00:10:36]} {[%emt 00:00:05]}
g5 {[%clk 00:08:06]} {[%emt 00:00:16]} 19. g3 {[%clk 00:10:25]} {[%emt
00:00:16]} g4 {[%clk 00:08:05]} {[%emt 00:00:06]} 20. Bh1 {[%clk 00:09:51]}
{[%emt 00:00:38]} f3 {[%clk 00:07:56]} {[%emt 00:00:15]} 21. Ne3 {[%clk
00:09:41]} {[%emt 00:00:15]} Kg6 {[%clk 00:06:51]} {[%emt 00:01:09]} 22. b4
{[%clk 00:09:45]} {[%emt 00:00:01]} cxb4 {[%clk 00:06:38]} {[%emt 00:00:17]} 23.
Qb3 {[%clk 00:09:48]} {[%emt 00:00:02]} Nh7 {[%clk 00:06:37]} {[%emt 00:00:06]}
24. Qxb4 {[%clk 00:09:43]} {[%emt 00:00:11]} Ng5 {[%clk 00:06:40]} {[%emt
00:00:02]} 25. Rfc1 {[%clk 00:09:46]} h4 {[%clk 00:05:08]} {[%emt 00:01:38]} 26.
Ba3 {[%clk 00:09:50]} {[%emt 00:00:02]} Rf6 {[%clk 00:04:28]} {[%emt 00:00:45]}
27. Nc4 {[%clk 00:09:54]} hxg3 {[%clk 00:04:27]} {[%emt 00:00:05]} 28. fxg3
{[%clk 00:09:42]} {[%emt 00:00:15]} Qh8 {[%clk 00:04:10]} {[%emt 00:00:24]} 29.
Ra2 {[%clk 00:08:13]} {[%emt 00:01:34]} f2+ {[%clk 00:04:14]} 30. Kf1 {[%clk
00:07:45]} {[%emt 00:00:34]} Qxh2 {[%clk 00:04:14]} {[%emt 00:00:04]} 31. Ne3
{[%clk 00:07:43]} {[%emt 00:00:08]} Qxh1+ {[%clk 00:04:13]} {[%emt 00:00:06]}
32. Ke2 {[%clk 00:07:47]} {[%emt 00:00:01]} Qf3+ {[%clk 00:03:09]} {[%emt
00:01:08]} 33. Kd2 {[%clk 00:07:51]} Qxg3 {[%clk 00:03:13]} {[%emt 00:00:03]}
34. Rf1 {[%clk 00:06:29]} {[%emt 00:01:26]} Nf3+ {[%clk 00:03:15]} {[%emt
00:00:04]} 35. Kc3 {[%clk 00:06:28]} {[%emt 00:00:05]} Nd4 {[%clk 00:02:53]}
{[%emt 00:00:27]} 36. Bc1 {[%clk 00:06:09]} {[%emt 00:00:25]} Ne2+ {[%clk
00:02:40]} {[%emt 00:00:17]} 37. Rxe2 {[%clk 00:06:09]} {[%emt 00:00:06]} Qf3
{[%clk 00:02:23]} {[%emt 00:00:22]} 38. Rexf2 {[%clk 00:06:06]} {[%emt
00:00:07]} Qxf2 {[%clk 00:02:22]} {[%emt 00:00:07]} 39. Rxf2 {[%clk 00:06:10]}
Rxf2 {[%clk 00:02:26]} {[%emt 00:00:02]} 40. Qxd6+ {[%clk 00:06:14]} Rf6 {[%clk
00:02:27]} {[%emt 00:00:02]} 41. Qe7 {[%clk 00:05:49]} {[%emt 00:00:29]} g3
{[%clk 00:02:23]} {[%emt 00:00:13]} 42. Ng2 {[%clk 00:05:52]} Bh3 {[%clk
00:02:07]} {[%emt 00:00:20]} 43. Nh4+ {[%clk 00:05:57]} {[%emt 00:00:01]} Kh7
{[%clk 00:02:06]} {[%emt 00:00:06]} 44. Nf5 {[%clk 00:05:43]} {[%emt 00:00:19]}
Bxf5 {[%clk 00:01:47]} {[%emt 00:00:24]} 45. exf5 {[%clk 00:05:47]} {[%emt
00:00:02]} g2 {[%clk 00:01:45]} {[%emt 00:00:06]} 46. Be3 {[%clk 00:05:51]}
{[%emt 00:00:01]} Rxf5 {[%clk 00:00:46]} {[%emt 00:01:06]} 47. Qh4+ {[%clk
00:05:54]} Kg8 {[%clk 00:00:50]} 48. Qg4 {[%clk 00:05:59]} Raf8 {[%clk
00:00:14]} {[%emt 00:00:41]} 49. Qxg2 {[%clk 00:06:02]} {[%emt 00:00:02]} Rf3
{[%clk 00:00:08]} {[%emt 00:00:11]} 50. Bh6 {[%clk 00:05:52]} {[%emt 00:00:14]}
R3f7 {[%clk 00:00:10]} {[%emt 00:00:03]} 51. Qg6 {[%clk 00:05:47]} {[%emt
00:00:10]} e4+ {[%clk 00:00:07]} {[%emt 00:00:08]} 52. Bxg7 {[%clk 00:05:50]}
{[%emt 00:00:02]} Rxg7 {[%clk 00:00:11]} 53. Qe6+ {[%clk 00:05:54]} {[%emt
00:00:01]} Kh8 {[%clk 00:00:14]} {[%emt 00:00:02]} 54. dxe4 {[%clk 00:05:58]}
{[%emt 00:00:01]} Rg3+ {[%clk 00:00:08]} {[%emt 00:00:11]} 55. Kd4 {[%clk
00:06:02]} {[%emt 00:00:01]} Rgf3 {[%clk 00:00:08]} {[%emt 00:00:05]} 56. d6
{[%clk 00:05:56]} {[%emt 00:00:11]} R3f6 {[%clk 00:00:07]} {[%emt 00:00:07]} 57.
Qh3+ {[%clk 00:05:58]} {[%emt 00:00:02]} Kg7 {[%clk 00:00:11]} {[%emt
00:00:02]} 58. e5 {[%clk 00:06:02]} {[%emt 00:00:01]} Rg6 {[%clk 00:00:07]}
{[%emt 00:00:09]} 59. Kd5 {[%clk 00:06:03]} {[%emt 00:00:04]} Rf2 {[%clk
00:00:09]} {[%emt 00:00:03]} 60. Qd7+ {[%clk 00:05:55]} {[%emt 00:00:12]} Kh6
{[%clk 00:00:13]} {[%emt 00:00:02]} 61. Qh3+ {[%clk 00:05:50]} {[%emt
00:00:10]} Kg7 {[%clk 00:00:17]} 62. Qe3 {[%clk 00:05:50]} {[%emt 00:00:03]}
Rf1 {[%clk 00:00:10]} {[%emt 00:00:14]} 63. Qxa7 {[%clk 00:05:30]} {[%emt
00:00:25]} Rd1+ {[%clk 00:00:10]} {[%emt 00:00:04]} 64. Kc5 {[%clk 00:05:34]}
{[%emt 00:00:02]} Rc1+ {[%clk 00:00:12]} {[%emt 00:00:03]} 65. Kb6 {[%clk
00:05:37]} {[%emt 00:00:02]} Kh6 {[%clk 00:00:10]} {[%emt 00:00:08]} 66. Qb8
{[%clk 00:05:25]} {[%emt 00:00:16]} Rb1+ {[%clk 00:00:07]} {[%emt 00:00:08]} 67.
Kc5 {[%clk 00:05:11]} {[%emt 00:00:16]} Rc1+ {[%clk 00:00:11]} {[%emt
00:00:04]} 68. Kb6 {[%clk 00:04:59]} {[%emt 00:00:18]} Rb1+ {[%clk 00:00:15]}
69. Ka7 {[%clk 00:05:02]} {[%emt 00:00:01]} Rb5 {[%clk 00:00:11]} {[%emt
00:00:09]} 70. Qh8+ {[%clk 00:04:44]} {[%emt 00:00:23]} Kg5 {[%clk 00:00:14]}
71. Qd8+ {[%clk 00:04:48]} {[%emt 00:00:02]} Kf4 {[%clk 00:00:08]} {[%emt
00:00:08]} 72. Qh4+ {[%clk 00:04:40]} {[%emt 00:00:15]} Kf5 {[%clk 00:00:09]}
{[%emt 00:00:05]} 73. Qh3+ {[%clk 00:04:39]} {[%emt 00:00:06]} Kg5 {[%clk
00:00:08]} {[%emt 00:00:06]} 74. Qe3+ {[%clk 00:04:41]} {[%emt 00:00:02]} Kh4
{[%clk 00:00:09]} {[%emt 00:00:05]} 75. Qe1+ {[%clk 00:04:22]} {[%emt
00:00:24]} Kg5 {[%clk 00:00:09]} {[%emt 00:00:06]} 76. e6 {[%clk 00:04:19]}
{[%emt 00:00:07]} Rg8 {[%clk 00:00:06]} {[%emt 00:00:07]} 77. Qg1+ {[%clk
00:04:20]} {[%emt 00:00:04]} 1-0

[ePGN "0.1;DGT LiveChess/2.2.5"]